bitfinex-derivatives/quotes_ETHF0:USTF0_20210402
["timestamp","ask_amount","ask_price","bid_price","bid_amount"]
[1617392137261,1.3337,2057.8,2057.7,2.90695]
[1617392138062,1.3337,2057.8,2057.7,3.18407562]
[1617392138867,0.0632,2057.8,2057.7,3.18407562]
[1617392143975,2.97015,2057.8,2057.7,3.18407562]
[1617392146681,0.0632,2057.8,2057.7,3.18407562]
[1617392151584,0.0632,2057.8,2057.7,0.27712562]
[1617392151984,2.97015,2057.8,2057.7,0.27712562]
[1617392152185,2.97015,2057.8,2057.2,2.90695]
[1617392152384,2.97015,2057.8,2057.3,0.27889856]
[1617392154088,2.90695,2057.4,2057.3,0.27889856]
[1617392154892,4.11995,2057.4,2057.3,0.27889856]
[1617392155291,4.11995,2057.4,2056.4,0.27862634]
[1617392155692,4.11995,2057.4,2057.3,0.27864717]
[1617392156093,4.11995,2057.4,2057.3,2.90695]
[1617392156294,4.11995,2057.4,2057.3,0.27856487]
[1617392156694,4.11995,2057.4,2056.3,0.27856257]
[1617392156894,4.11995,2057.4,2057.3,0.27857312]
[1617392157094,2.90695,2057.4,2057.3,0.27857312]
[1617392157295,2.90695,2057.4,2056.3,2.17834422]
[1617392157694,2.90695,2057.4,2056.4,0.27856636]
[1617392158095,2.90695,2057.4,2057.3,2.90695]
[1617392158697,2.90695,2057.4,2057.3,0.27866447]
[1617392159298,2.90695,2057.4,2056.3,0.278863]
[1617392160101,2.90695,2057.4,2057.3,2.90695]
[1617392160701,2.90695,2057.4,2057.3,3.18589917]
[1617392161101,2.90695,2057.4,2057.3,0.27894917]
[1617392161502,2.90695,2057.4,2056.3,0.27927474]
[1617392161901,2.90695,2057.4,2056.2,0.279552]
[1617392162103,1.8298,2057.6,2057.0,2.90695]
[1617392162702,1.8298,2057.6,2057.1,0.28026197]
[1617392162902,1.8298,2057.6,2055.9,4.9295444]
[1617392163103,1.8298,2057.6,2055.7,4.93280393]
[1617392163504,1.8298,2057.6,2055.4,4.93667795]
[1617392164106,2.7894,2057.6,2055.4,4.93667795]
[1617392164304,2.0,2057.4,2055.3,5.90099957]
[1617392164503,2.0,2057.2,2055.3,5.90099957]
[1617392164703,2.0,2057.0,2055.3,5.90099957]
[1617392164907,31.9667,2057.1,2055.3,5.90099957]
[1617392164908,2.0,2056.8,2055.3,5.90099957]
[1617392165111,32.0,2056.8,2055.3,5.90099957]
[1617392165307,32.0,2056.8,2055.3,0.9632]
[1617392165510,14.0229,2056.7,2055.3,0.9632]
[1617392166110,14.0229,2056.7,2055.8,2.90695]
[1617392167505,14.0229,2056.7,2055.3,5.89673366]
[1617392168105,14.0229,2056.7,2056.1,2.90695]
[1617392168707,14.0229,2056.7,2056.2,0.27652538]
[1617392170108,14.0229,2056.7,2056.6,2.90695]
[1617392170309,14.0229,2056.7,2056.6,4.38295]
[1617392170509,14.0229,2056.7,2056.6,4.65900733]
[1617392172814,14.0229,2056.7,2056.6,3.18300733]
[1617392180121,14.0229,2056.7,2056.6,4.45120733]
[1617392181622,14.0229,2056.7,2056.6,3.18300733]
[1617392191635,15.5137,2056.7,2056.6,3.18300733]
[1617392191835,15.5137,2056.7,2056.6,0.27605733]
[1617392192234,15.5137,2056.7,2055.7,0.28061423]
[1617392192434,15.5137,2056.7,2056.6,0.28073055]
[1617392192634,14.0229,2056.7,2056.6,0.28073055]
[1617392192838,14.0229,2056.7,2056.2,0.2807116]
[1617392193234,14.0229,2056.7,2056.6,0.27708844]
[1617392193635,14.0229,2056.7,2056.2,0.27697114]
[1617392193836,14.0229,2056.7,2056.6,0.27677012]
[1617392194236,14.0229,2056.7,2056.2,0.27671209]
[1617392194436,14.0229,2056.7,2056.6,2.90695]
[1617392194839,14.0229,2056.7,2056.6,4.47805]
[1617392195039,14.0229,2056.7,2056.6,4.75461937]
[1617392195442,14.0229,2056.7,2056.6,34.75461937]
[1617392198645,14.0229,2056.7,2056.6,4.75461937]
[1617392200248,14.0229,2056.7,2056.6,3.18351937]
[1617392203151,14.0229,2056.7,2056.6,5.12501937]
[1617392207755,14.0229,2056.7,2056.6,35.12501937]
[1617392208156,12.3275,2056.7,2056.6,35.12501937]
[1617392208356,11.5962,2056.7,2056.6,35.12501937]
[1617392208557,11.5962,2056.7,2056.6,37.12501937]
[1617392209256,13.7993,2057.1,2056.6,37.12501937]
[1617392209857,13.7993,2057.1,2056.7,0.27408017]
[1617392210557,13.7993,2057.1,2057.0,2.90695]
[1617392210756,13.7993,2057.1,2057.0,3.18134413]
[1617392211459,13.7993,2057.1,2057.0,33.18134413]
[1617392216562,13.7993,2057.1,2057.0,3.18134413]
[1617392222868,13.7993,2057.1,2057.0,33.18134413]
[1617392225372,2.90695,2057.7,2057.0,33.18134413]
[1617392225572,0.0632,2057.8,2057.0,33.18134413]
[1617392225972,0.0632,2057.8,2057.1,2.08610355]
[1617392226172,0.0632,2057.8,2057.1,3.05870355]
[1617392226571,0.0632,2057.8,2057.7,2.90695]
[1617392226771,0.0632,2057.8,2057.7,4.55125]
[1617392227372,0.0632,2057.8,2057.7,4.82674849]
[1617392229984,0.0632,2057.8,2057.7,0.27549849]
[1617392230578,0.0632,2057.8,2056.8,0.27525609]
[1617392230783,4.87855,2057.8,2057.7,2.90695]
[1617392230981,4.87855,2057.8,2057.7,3.18224584]
[1617392232984,2.97015,2057.8,2057.7,3.18224584]
[1617392233184,0.0632,2057.8,2057.7,3.18224584]
[1617392238692,2.97015,2057.8,2057.7,3.18224584]
[1617392241191,0.0632,2057.8,2057.7,3.18224584]
[1617392251402,0.0632,2057.8,2057.7,0.27529584]
[1617392251801,0.0632,2057.8,2056.1,4.79646907]
[1617392252001,30.0632,2057.8,2056.2,0.27489781]
[1617392252400,15.3895,2057.7,2056.1,0.27513785]
[1617392252605,2.0,2057.6,2056.1,0.27513785]
[1617392252804,15.3895,2057.7,2057.2,2.90695]
[1617392253805,2.0,2057.6,2057.2,2.90695]
[1617392254005,15.3895,2057.7,2057.2,2.90695]
[1617392254806,2.90695,2057.3,2057.2,2.90695]
[1617392255205,2.90695,2057.3,2057.2,3.18257567]
[1617392257510,13.5085,2057.7,2057.2,3.18257567]
[1617392257910,13.5085,2057.7,2057.3,0.27594584]
[1617392258911,13.5085,2057.7,2057.6,2.90695]
[1617392259513,13.5085,2057.7,2057.6,3.18275816]
[1617392260712,13.5085,2057.7,2057.6,2.90695]
[1617392260912,16.41545,2057.7,2057.6,2.90695]
[1617392261112,16.41545,2057.7,2057.6,3.18281554]
[1617392261313,16.41545,2057.7,2057.6,2.90695]
[1617392261513,18.32945,2057.7,2056.0,3.1]
[1617392261913,18.32945,2057.7,2056.1,0.27602368]
[1617392262115,18.32945,2057.7,2056.1,2.27602368]
[1617392262713,18.32945,2057.7,2056.2,0.27562537]
[1617392262915,13.5085,2057.7,2057.3,2.90695]
[1617392263315,13.5085,2057.7,2057.4,0.27564932]
[1617392265016,2.90695,2057.5,2057.4,0.27564932]
[1617392270121,13.5085,2057.7,2057.4,0.27564932]
[1617392271020,16.41545,2057.7,2057.6,2.90695]
[1617392271421,16.41545,2057.7,2057.6,3.18280493]
[1617392277426,16.41545,2057.7,2057.6,2.90695]
[1617392279029,16.41545,2057.7,2057.6,3.18159023]
[1617392279628,16.41545,2057.7,2057.6,2.90695]
[1617392280938,16.41545,2057.7,2057.6,3.1817021]
[1617392285645,16.41545,2057.7,2057.6,0.2747521]
[1617392285843,16.41545,2057.7,2056.7,0.27461326]
[1617392286245,16.41545,2057.7,2056.4,0.27464729]
[1617392286543,16.41545,2057.7,2056.3,0.27453662]
[1617392287244,13.5085,2057.7,2057.2,2.90695]
[1617392287644,13.5085,2057.7,2057.3,0.27465399]
[1617392287843,43.5085,2057.7,2057.3,0.27465399]
[1617392289144,4.55525,2057.4,2057.3,0.27465399]
[1617392291546,2.90695,2057.4,2057.3,0.27465399]
[1617392294849,4.69965,2057.4,2057.3,0.27465399]
[1617392295649,34.69965,2057.4,2056.0,4.8457314]
[1617392296249,2.0,2057.3,2055.7,4.85608686]
[1617392296451,2.0,2057.1,2055.7,4.85608686]
[1617392296650,32.0,2057.1,2055.7,4.85608686]
[1617392297150,32.0,2057.1,2056.5,2.90695]
[1617392297550,30.0,2057.1,2056.5,2.90695]
[1617392297750,30.0,2057.1,2055.7,4.85651895]
[1617392298351,30.0,2057.1,2055.6,4.85344966]
[1617392299151,30.0,2057.1,2056.7,2.90695]
[1617392299551,1.7927,2057.4,2056.7,2.90695]
[1617392299751,30.9791,2057.6,2056.7,2.90695]
[1617392299953,30.0,2057.6,2056.7,2.90695]
[1617392300151,32.0,2057.6,2056.7,2.90695]
[1617392300952,32.0,2057.6,2056.8,0.27299554]
[1617392301152,2.90695,2056.9,2056.8,0.27299554]
[1617392302855,30.0,2057.6,2056.8,0.27299554]
[1617392303255,30.0,2057.6,2057.1,2.90695]
[1617392303658,30.0,2057.6,2057.2,0.27384422]
[1617392305156,2.90695,2057.3,2057.2,0.27384422]
[1617392306557,13.5085,2057.7,2057.2,0.27384422]
[1617392306759,13.5085,2057.7,2057.2,2.59734422]
[1617392307158,13.5085,2057.7,2057.6,2.90695]
[1617392307561,13.5085,2057.7,2057.6,3.17997111]
[1617392317274,16.41545,2057.7,2057.6,3.17997111]
[1617392317674,13.5085,2057.7,2057.6,3.17997111]
[1617392322500,13.2849,2057.7,2057.6,5.17997111]
[1617392323090,0.0632,2057.8,2057.6,5.17997111]
[1617392323289,13.5646,2058.1,2057.6,35.17997111]
[1617392323290,13.3407,2058.1,2057.6,35.17997111]
[1617392323478,11.7236,2058.1,2057.6,35.17997111]
[1617392324079,11.7236,2058.1,2057.7,0.27035853]
[1617392324278,2.90695,2059.3,2057.7,2.91565853]
[1617392324480,2.90695,2059.3,2057.9,2.0]
[1617392324680,2.90695,2059.3,2058.1,2.0]
[1617392324882,2.90695,2059.3,2058.3,2.0]
[1617392325082,2.90695,2059.3,2058.3,32.0]
[1617392325283,2.90695,2059.3,2059.2,2.90695]
[1617392325482,2.90695,2059.3,2059.2,4.23125]
[1617392332418,2.90695,2059.3,2059.2,2.90695]
[1617392333209,2.90695,2059.3,2058.3,32.9675]
[1617392333210,4.15945,2059.3,2058.3,2.9675]
[1617392333428,2.2092,2059.3,2058.9,2.90695]
[1617392333614,2.2092,2059.3,2058.9,3.88495]
[1617392334390,1.2525,2059.3,2058.9,2.90695]
[1617392334990,1.2525,2059.3,2057.8,2.0]
[1617392335491,1.2525,2059.3,2058.5,2.90695]
[1617392337296,32.0,2059.7,2058.5,2.90695]
[1617392337493,32.0,2059.7,2058.9,2.90695]
[1617392337895,2.0,2059.7,2058.9,2.90695]
[1617392338295,14.1972,2059.8,2058.9,2.90695]
[1617392339497,14.1972,2059.8,2059.6,2.90695]
[1617392339699,14.1972,2059.8,2058.7,1.9526]
[1617392339898,14.1972,2059.8,2059.6,1.2462]
[1617392341400,2.90695,2059.7,2059.6,4.15315]
[1617392342502,2.90695,2059.7,2059.6,2.90695]
[1617392343403,12.90695,2059.7,2059.6,2.90695]
[1617392357633,12.90695,2059.7,2059.3,2.90695]
[1617392359729,12.90695,2059.7,2059.6,2.90695]
[1617392361931,12.90695,2059.7,2058.4,2.0]
[1617392362133,14.17855,2059.7,2058.4,2.0]
[1617392363034,14.17855,2059.7,2058.4,2.9667]
[1617392363632,11.2716,2059.7,2059.4,2.90695]
[1617392363833,10.0,2059.7,2059.4,2.90695]
[1617392365737,2.90695,2059.5,2059.4,2.90695]
[1617392365937,4.49235,2059.5,2059.4,2.90695]
[1617392367942,2.90695,2059.5,2059.4,2.90695]
[1617392372149,2.90695,2059.5,2058.4,30.0]
[1617392372349,2.90695,2059.5,2058.5,2.0]
[1617392372751,2.90695,2059.5,2058.6,0.26669271]
[1617392373650,2.90695,2059.5,2059.4,2.90695]
[1617392378356,2.90695,2059.5,2059.4,3.1749015]
[1617392383263,4.80625,2059.5,2059.4,3.1749015]
[1617392384463,4.80625,2059.5,2059.4,2.90695]
[1617392384864,4.80625,2059.5,2059.4,3.17559969]
[1617392389675,4.80625,2059.5,2059.4,2.90695]
[1617392393578,4.80625,2059.5,2059.4,3.17583591]
[1617392395178,4.80625,2059.5,2059.4,2.90695]
[1617392396178,4.80625,2059.5,2059.4,3.17585299]
[1617392396378,4.80625,2059.5,2059.4,2.90695]
[1617392396578,2.90695,2059.5,2059.4,2.90695]
[1617392396778,2.90695,2059.5,2059.4,3.1756759]
[1617392398580,4.41965,2059.5,2059.4,3.1756759]
[1617392401183,4.41965,2059.5,2059.4,0.2687259]
[1617392401583,4.41965,2059.5,2058.4,0.26947453]
[1617392401788,1.5127,2059.5,2059.2,2.90695]
[1617392402384,1.5127,2059.5,2059.3,0.26969077]
[1617392403186,10.0,2059.7,2059.3,0.26969077]
[1617392403787,2.90695,2059.4,2059.3,0.26969077]
[1617392403986,10.0,2059.7,2059.3,0.26969077]
[1617392405791,10.0,2059.7,2059.6,2.90695]
[1617392406292,10.0,2059.7,2059.6,3.17614139]
[1617392409898,10.0,2059.7,2059.6,2.90695]
[1617392410700,10.0,2059.7,2059.6,3.1761361]
[1617392412805,11.2552,2059.7,2059.6,3.1761361]
[1617392413002,41.2552,2059.7,2059.6,0.2691861]
[1617392413203,41.2552,2059.7,2058.5,0.26984576]
[1617392413606,41.2552,2059.7,2058.2,2.0]
[1617392413802,41.2552,2059.7,2058.0,4.84620436]
[1617392414005,41.2552,2059.7,2059.1,2.90695]
[1617392414403,41.2552,2059.7,2059.2,0.27020802]
[1617392415004,11.2552,2059.7,2059.2,0.27020802]
[1617392415907,2.90695,2059.3,2059.2,0.27020802]
[1617392416710,4.85995,2059.3,2059.2,0.27020802]
[1617392418011,2.90695,2059.3,2059.2,0.27020802]
[1617392424423,2.90695,2059.3,2058.9,0.27061893]
[1617392424824,2.90695,2059.3,2058.8,2.90695]
[1617392425024,2.90695,2059.3,2058.9,0.2708466]
[1617392425425,2.90695,2059.3,2057.9,0.27102059]
[1617392425624,2.90695,2059.3,2057.6,4.8682042]
[1617392426024,32.0,2059.6,2058.5,2.90695]
[1617392426223,15.7488,2059.2,2058.5,2.90695]
[1617392426624,45.7488,2059.2,2058.6,0.27118174]
[1617392427026,47.7488,2059.2,2057.6,4.8682042]
[1617392427426,47.7488,2059.2,2057.7,0.27136187]
[1617392427629,13.5247,2059.1,2057.7,0.27136187]
[1617392427826,32.0,2059.0,2057.7,0.27136187]
[1617392428026,2.90695,2058.1,2058.0,2.90695]
[1617392428227,4.85985,2058.1,2058.0,2.90695]
[1617392428427,4.85985,2058.1,2058.0,3.17759937]
[1617392441344,2.90695,2058.1,2058.0,3.17759937]
[1617392442144,4.60565,2058.1,2058.0,3.17759937]
[1617392443845,2.90695,2058.1,2058.0,3.17759937]
[1617392444646,4.53925,2058.1,2058.0,3.17759937]
[1617392446351,30.0,2058.9,2058.0,3.17759937]
[1617392446969,13.5247,2059.1,2058.0,3.17759937]
[1617392447152,13.5247,2059.1,2058.1,0.27140882]
[1617392448352,13.5247,2059.1,2058.5,4.34425]
[1617392450254,13.5247,2059.1,2058.9,2.90695]
[1617392454358,2.90695,2059.0,2058.9,2.90695]
[1617392454562,2.90695,2059.0,2058.9,5e-05]
[1617392454757,2.90695,2059.0,2057.8,33.9512]
[1617392454958,2.90695,2059.0,2057.9,0.27112233]
[1617392456360,13.5247,2059.1,2058.4,2.90695]
[1617392456659,13.5247,2059.1,2058.5,0.27074534]
[1617392457459,13.5247,2059.1,2058.4,2.90695]
[1617392457659,13.5247,2059.1,2058.5,0.27093785]
[1617392458260,13.5247,2059.1,2058.9,2.90695]
[1617392460261,2.90695,2059.0,2058.9,2.90695]
[1617392460464,2.90695,2059.0,2058.9,4.50875]
[1617392461960,2.90695,2059.0,2058.9,4.77953382]
[1617392463665,2.90695,2059.0,2058.9,4.50875]
[1617392463865,2.90695,2059.0,2058.2,1.5214]
[1617392464065,2.90695,2059.0,2057.8,32.0]
[1617392464265,2.90695,2059.0,2058.3,0.27085493]
[1617392464466,13.5247,2059.1,2058.7,2.90695]
[1617392465068,13.5247,2059.1,2058.8,1.51534156]
[1617392465677,13.5247,2059.1,2058.9,0.27101703]
[1617392466369,13.5247,2059.1,2059.0,2.90695]
[1617392466570,13.5247,2059.1,2059.0,3.17779941]
[1617392468170,13.5247,2059.1,2059.0,5.17779941]
[1617392471774,13.5247,2059.1,2059.0,3.17779941]
[1617392474377,13.5247,2059.1,2059.0,4.70639941]
[1617392476383,13.5247,2059.1,2059.0,3.17779941]
[1617392478483,16.43165,2059.1,2059.0,3.17779941]
[1617392480284,16.43165,2059.1,2059.0,0.27084941]
[1617392480487,16.43165,2059.1,2057.7,30.0]
[1617392480685,16.43165,2059.1,2057.8,0.27096348]
[1617392482486,13.5247,2059.1,2058.1,2.90695]
[1617392482886,13.5247,2059.1,2058.2,0.27061478]
[1617392484387,13.5247,2059.1,2058.5,2.90695]
[1617392484789,13.5247,2059.1,2058.6,0.27056115]
[1617392486390,2.90695,2058.7,2058.6,0.27056115]
[1617392487490,13.5247,2059.1,2058.6,0.27056115]
[1617392488495,13.5247,2059.1,2059.0,2.90695]
[1617392488993,13.5247,2059.1,2059.0,3.17676665]
[1617392503410,13.5247,2059.1,2059.0,5.17676665]
[1617392504210,13.5247,2059.1,2059.0,6.14646665]
[1617392504410,13.5247,2059.1,2059.0,5.17676665]
[1617392507913,13.5247,2059.1,2059.0,6.55096665]
[1617392510215,2.90695,2059.6,2059.0,6.55096665]
[1617392510615,2.90695,2059.6,2059.5,2.90695]
[1617392510815,2.90695,2059.6,2059.5,4.11475]
[1617392511217,2.90695,2059.6,2059.5,4.38380622]
[1617392511618,10.0,2059.7,2059.5,4.38380622]
[1617392512218,10.0,2059.7,2059.6,0.26880635]
[1617392512620,10.0,2059.7,2059.6,2.26880635]
[1617392512818,10.0,2059.7,2059.6,3.56210635]
[1617392516122,10.0,2059.7,2059.6,2.26880635]
[1617392516323,10.0,2059.7,2059.6,0.26880635]
[1617392516724,10.0,2059.7,2059.6,2.26880635]
[1617392520026,10.0,2059.7,2059.6,32.26880635]
[1617392523033,10.0,2059.7,2059.6,33.24970635]
[1617392523533,10.0,2059.7,2059.6,32.26880635]
[1617392526237,8.4488,2059.7,2059.6,32.26880635]
[1617392526437,0.9245,2059.8,2059.6,32.26880635]
[1617392526638,13.5582,2061.0,2059.6,32.26880635]
[1617392526841,13.5582,2061.0,2060.9,4.33635]
[1617392527039,9.7596,2061.0,2060.9,36.33635]
[1617392527239,2.90695,2061.3,2060.9,36.33635]
[1617392527438,13.9448,2063.0,2060.9,36.33635]
[1617392528839,13.9448,2063.0,2062.2,2.90695]
[1617392530939,2.90695,2062.3,2062.2,2.90695]
[1617392534542,2.90695,2062.3,2062.1,1.966]
[1617392534743,2.90695,2062.3,2061.4,0.9785]
[1617392534943,13.9448,2063.0,2062.1,2.90695]
[1617392536843,2.90695,2062.2,2062.1,2.90695]
[1617392545851,13.9448,2063.0,2062.1,2.90695]
[1617392546951,13.9448,2063.0,2062.8,2.90695]
[1617392552659,13.9448,2063.0,2062.8,32.90695]
[1617392554061,11.5987,2063.0,2062.8,32.90695]
[1617392554263,4.0,2063.3,2062.8,32.90695]
[1617392554462,4.0,2063.3,2062.9,2.0]
[1617392554665,4.0,2063.3,2063.0,30.0]
[1617392554862,4.0,2063.3,2063.0,32.0]
[1617392555061,4.0,2063.3,2063.2,2.90695]
[1617392555263,4.0,2063.3,2063.2,34.25885]
[1617392561067,2.90695,2064.1,2063.2,34.25885]
[1617392562168,4.0,2063.3,2063.2,34.25885]
[1617392563769,4.0,2063.3,2063.2,2.90695]
[1617392563968,4.0,2063.3,2061.6,2.0]
[1617392564169,4.0,2063.3,2061.7,30.0]
[1617392565168,4.0,2063.3,2062.8,2.90695]
[1617392566369,4.0,2063.3,2061.7,30.0]
[1617392567169,4.0,2063.3,2062.9,2.90695]
[1617392567369,4.0,2063.3,2061.8,30.0]
[1617392568871,2.0,2063.2,2061.8,30.0]
[1617392569072,2.0,2063.2,2062.5,2.90695]
[1617392571174,2.90695,2062.6,2062.5,2.90695]
[1617392571374,4.88785,2062.6,2062.5,2.90695]
[1617392572174,4.88785,2062.6,2061.5,0.9844]
[1617392575276,4.88785,2062.6,2062.4,2.90695]
[1617392576777,4.88785,2062.6,2060.9,1.1]
[1617392576977,4.88785,2062.6,2060.7,32.0]
[1617392577177,31.9809,2062.6,2061.4,2.90695]
[1617392577577,2.0,2062.5,2061.4,2.90695]
[1617392578778,32.0,2062.5,2061.4,2.90695]
[1617392579179,2.90695,2061.5,2061.4,2.90695]
[1617392579378,4.53345,2061.5,2061.4,2.90695]
[1617392579579,4.53345,2061.5,2060.2,32.0]
[1617392580580,4.53345,2061.5,2060.3,30.0]
[1617392581181,1.6265,2061.5,2061.0,2.90695]
[1617392582782,11.0,2061.4,2061.0,2.90695]
[1617392583182,2.90695,2061.1,2061.0,2.90695]
[1617392584682,11.0,2061.4,2061.0,2.90695]
[1617392585283,13.90695,2061.4,2061.3,2.90695]
[1617392585883,13.90695,2061.4,2060.3,0.98]
[1617392586683,13.90695,2061.4,2060.3,2.08]
[1617392586883,13.90695,2061.4,2060.4,30.26357951]
[1617392587085,13.90695,2061.4,2060.5,0.26361079]
[1617392587284,13.90695,2061.4,2061.3,2.90695]
[1617392591495,11.0,2061.4,2061.3,2.90695]
[1617392591893,11.0,2061.4,2061.3,3.87015]
[1617392592295,11.0,2061.4,2061.3,3.1707916]
[1617392593499,11.0,2061.4,2061.3,4.1315916]
[1617392593701,11.0,2061.4,2061.3,34.1315916]
[1617392593898,11.0,2061.4,2061.3,36.1315916]
[1617392594599,11.0,2061.4,2061.3,37.2315916]
[1617392596401,8.9959,2061.4,2061.3,37.2315916]
[1617392596605,8.3724,2061.4,2061.3,37.2315916]
[1617392597004,7.8674,2061.4,2061.3,37.2315916]
[1617392597203,14.0137,2062.8,2061.3,37.2315916]
[1617392597403,14.0137,2062.8,2062.7,2.90695]
[1617392597603,14.0137,2062.8,2062.7,4.72355]
[1617392599308,14.0137,2062.8,2062.7,34.72355]
[1617392605416,14.0137,2062.8,2062.7,36.72355]
[1617392605916,13.8294,2062.8,2062.7,36.72355]
[1617392606118,12.3412,2062.8,2062.7,36.98819972]
[1617392606317,11.3259,2062.8,2062.7,36.98819972]
[1617392606518,4.0,2063.5,2062.7,36.98819972]
[1617392607121,4.0,2063.5,2062.8,0.26469867]
[1617392607521,4.0,2063.5,2063.4,2.90695]
[1617392607721,4.0,2063.5,2063.4,4.78365]
[1617392608723,3.2684,2063.5,2063.4,4.78365]
[1617392609925,2.9558,2063.5,2063.4,34.78365]
[1617392610225,2.0016,2063.5,2063.4,34.78365]
[1617392610625,2.0016,2063.5,2063.4,35.04726572]
[1617392610824,1.0366,2063.5,2063.4,35.04726572]
[1617392613327,1.0366,2063.5,2063.4,34.78365]
[1617392613527,0.0635,2063.5,2063.4,34.78365]
[1617392613726,0.0635,2063.5,2063.4,35.0475088]
[1617392614829,13.2606,2064.5,2063.4,35.0475088]
[1617392615029,13.2606,2064.5,2063.4,34.78365]
[1617392615528,13.2606,2064.5,2064.4,2.90695]
[1617392616730,13.2606,2064.5,2063.3,30.0]
[1617392616931,15.207,2064.5,2063.3,30.0]
[1617392617530,15.207,2064.5,2064.4,2.90695]
[1617392618731,13.2606,2064.5,2064.4,2.90695]
[1617392619634,16.16755,2064.5,2064.4,2.90695]
[1617392621234,13.2606,2064.5,2064.4,2.90695]
[1617392621433,12.2895,2064.5,2064.4,2.90695]
[1617392621633,12.2895,2064.5,2064.4,4.32765]
[1617392625839,12.2895,2064.5,2064.4,5.30615]
[1617392626040,12.2895,2064.5,2064.4,4.32765]
[1617392626764,12.2895,2064.5,2064.4,2.90695]
[1617392629245,2.90695,2065.0,2064.4,2.90695]
[1617392629645,2.90695,2065.0,2064.9,2.90695]
[1617392630246,15.5507,2065.8,2064.9,2.90695]
[1617392631650,15.5507,2065.8,2065.3,2.90695]
[1617392632950,15.5507,2065.8,2064.3,1.2843]
[1617392633352,15.5507,2065.8,2063.8,30.0]
[1617392633650,2.90695,2065.1,2065.0,2.90695]
[1617392635452,1.6476,2065.7,2065.0,2.90695]
[1617392635653,2.90695,2065.1,2065.0,2.90695]
[1617392639557,2.90695,2065.1,2064.0,30.0]
[1617392639761,2.90695,2065.1,2065.0,2.90695]
[1617392639958,2.90695,2065.1,2064.0,30.0]
[1617392640557,13.5507,2065.8,2064.0,32.0]
[1617392641158,13.5507,2065.8,2064.0,33.1]
[1617392641859,13.5507,2065.8,2065.5,2.90695]
[1617392642059,13.5507,2065.8,2065.5,4.46895]
[1617392643760,2.90695,2065.6,2065.5,4.46895]
[1617392645162,13.5507,2065.8,2065.5,4.46895]
[1617392645563,13.5507,2065.8,2065.5,34.46895]
[1617392646364,2.90695,2065.9,2065.5,34.46895]
[1617392646565,13.1589,2066.0,2065.5,34.46895]
[1617392647865,13.1589,2066.0,2065.9,2.90695]
[1617392650672,13.1589,2066.0,2065.9,32.90695]
[1617392653476,2.90695,2066.2,2065.9,32.90695]
[1617392653676,8.0,2067.0,2065.9,32.90695]
[1617392653876,8.0,2067.0,2066.8,4.23575]
[1617392655076,8.0,2067.0,2066.8,2.90695]
[1617392655276,29.3228,2067.6,2066.0,30.0]
[1617392655477,30.9575,2067.6,2066.0,30.0]
[1617392655678,8.0,2067.2,2066.0,30.0]
[1617392655876,8.0,2067.2,2066.6,2.90695]
[1617392657779,2.90695,2066.7,2066.6,2.90695]
[1617392663482,8.0,2067.2,2066.6,4.44095]
[1617392663884,8.0,2067.2,2067.1,2.90695]
[1617392665083,8.0,2067.2,2065.5,0.9769]
[1617392665283,8.0,2067.2,2065.4,30.0]
[1617392665483,9.9815,2067.2,2065.4,32.0]
[1617392665885,9.9815,2067.2,2066.6,2.90695]
[1617392667585,9.9815,2067.2,2065.4,32.0]
[1617392667987,9.9815,2067.2,2066.2,2.90695]
[1617392669890,2.90695,2066.3,2066.2,2.90695]
[1617392670088,4.27365,2066.3,2065.0,1.1]
[1617392670891,4.27365,2066.3,2064.8,30.0]
[1617392671889,1.3667,2066.3,2065.5,2.90695]
[1617392672691,26.9764,2066.8,2065.5,2.90695]
[1617392673092,26.9764,2066.8,2065.6,30.0]
[1617392673303,26.9764,2066.8,2065.6,30.9558]
[1617392673501,14.0,2066.2,2065.6,30.9558]
[1617392673992,14.0,2066.2,2066.1,2.90695]
[1617392674506,14.0,2066.2,2066.1,32.90695]
[1617392674695,14.0,2066.2,2066.1,34.21045]
[1617392676494,14.0,2066.2,2066.1,32.90695]
[1617392680498,14.0,2066.2,2066.1,34.90695]
[1617392680698,13.542,2066.2,2066.1,34.90695]
[1617392680904,13.2691,2066.2,2066.1,34.90695]
[1617392681501,11.6265,2066.2,2066.1,34.90695]
[1617392681699,9.9106,2066.2,2066.1,34.90695]
[1617392683702,9.4258,2066.2,2066.1,34.90695]
[1617392684803,9.2668,2066.2,2066.1,34.90695]
[1617392685005,7.8083,2066.2,2066.1,34.90695]
[1617392685404,1.6175,2066.2,2066.1,34.90695]
[1617392685605,12.8488,2066.8,2066.1,34.90695]
[1617392686005,11.7259,2066.8,2066.1,34.90695]
[1617392686206,2.90695,2066.9,2066.7,4.17675]
[1617392688207,2.90695,2066.9,2066.7,2.90695]
[1617392690509,2.90695,2066.9,2066.7,4.38345]
[1617392691511,2.90695,2066.9,2066.7,36.38345]
[1617392693712,2.67875,2066.9,2066.7,36.38345]
[1617392693913,8.0,2067.2,2066.7,36.38345]
[1617392694213,10.90695,2067.2,2067.1,2.90695]
[1617392699417,2.90695,2067.2,2067.1,32.90695]
[1617392699822,10.90695,2067.2,2067.1,32.90695]
[1617392705623,12.24585,2067.2,2067.1,2.90695]
[1617392705822,25.24585,2067.2,2067.1,2.90695]
[1617392717129,22.3389,2067.2,2067.1,2.90695]
[1617392721234,13.0,2067.2,2067.1,2.90695]
[1617392724337,15.90695,2067.2,2067.1,2.90695]
[1617392726739,17.12415,2067.2,2067.1,2.90695]
[1617392728741,17.12415,2067.2,2066.3,0.9652]